fUSD/lending_fUSD_20251231
["ID","MTS","AMOUNT","RATE_DAILY","PERIOD"]
[400209274,1767196837572,-150.0,0.00011388,2]
[400209275,1767196855484,999.0,0.00010959,3]
[400209276,1767196861649,63.46261012,0.00011439,2]
[400209277,1767196861726,236.53738988,0.00011439,2]
[400209278,1767196863984,208.90128563,0.00011439,2]
[400209279,1767196865742,500.0,0.0001138,2]
[400209280,1767196866112,500.0,0.00011435,2]
[400209281,1767196866225,500.0,0.0001138,2]
[400209282,1767196866360,500.0,0.00011435,2]
[400209283,1767196866481,500.0,0.0001138,2]
[400209284,1767196866633,500.0,0.00011435,2]
[400209285,1767196867573,500.0,0.0001138,2]
[400209286,1767196868255,500.0,0.00011435,2]
[400209287,1767196894005,1742.492,0.00011211,2]
[400209288,1767196894104,160.536,0.00011211,2]
[400209289,1767196908861,500.0,0.00011387,2]
[400209290,1767196908981,500.0,0.00011387,2]
[400209291,1767196909097,500.0,0.00011387,2]
[400209292,1767196909232,170.50617283,0.00011387,2]
[400209293,1767196909360,500.0,0.00011387,2]
[400209294,1767196909484,500.0,0.00011387,2]
[400209295,1767196909654,500.0,0.00011387,2]
[400209296,1767196909774,481.03715166,0.00011387,2]
[400209297,1767196909861,131.07973376,0.00011387,2]
[400209298,1767196910001,500.0,0.00011387,2]
[400209299,1767196910410,500.0,0.00011387,2]
[400209300,1767196910508,500.0,0.00011387,2]
[400209301,1767196910685,500.0,0.00011387,2]
[400209302,1767196910813,500.0,0.00011387,2]
[400209303,1767196910919,500.0,0.00011387,2]
[400209304,1767196911026,500.0,0.00011387,2]
[400209305,1767196911144,500.0,0.00011387,2]
[400209306,1767196911258,500.0,0.00011387,2]
[400209307,1767196911382,500.0,0.00011387,2]
[400209308,1767196911494,500.0,0.00011387,2]
[400209309,1767196911609,500.0,0.00011387,2]
[400209310,1767196911724,500.0,0.00011387,2]
[400209311,1767196911836,500.0,0.00011387,2]
[400209312,1767196911961,500.0,0.00011387,2]
[400209313,1767196912089,500.0,0.00011387,2]
[400209314,1767196912231,500.0,0.00011387,2]
[400209315,1767196912369,500.0,0.00011387,2]
[400209316,1767196912499,500.0,0.00011387,2]
[400209317,1767196912621,368.93026624,0.00011387,2]
[400209318,1767196912715,131.06973376,0.00011387,2]
[400209319,1767196912826,500.0,0.00011387,2]
[400209320,1767196912954,500.0,0.00011387,2]
[400209321,1767196921049,7687.56960192,0.0001134,2]
[400209322,1767196921392,300.0,0.00011439,2]
[400209323,1767196924809,582.08587668,0.0001134,2]
[400209324,1767196927938,200.0,0.00011191,2]
[400209325,1767196928531,99.28478764,0.00011191,2]
[400209326,1767196928634,108.11521236,0.00011191,2]
[400209327,1767196929121,215.0738,0.00011191,2]
[400209328,1767196929703,223.0315306,0.00011191,2]
[400209329,1767196930322,231.28369723,0.00011191,2]
[400209330,1767196930941,239.84119403,0.00011191,2]
[400209331,1767196931540,248.71531821,0.00011191,2]
[400209332,1767196932168,257.91778498,0.00011191,2]
[400209333,1767196932789,267.46074303,0.00011191,2]
[400209334,1767196933843,500.0,0.00011387,2]
[400209335,1767196933980,500.0,0.00011387,2]
[400209336,1767196934286,500.0,0.00011387,2]
[400209337,1767196934422,500.0,0.00011387,2]
[400209338,1767196934580,500.0,0.00011387,2]
[400209339,1767196934738,500.0,0.00011387,2]
[400209340,1767196934875,500.0,0.00011387,2]
[400209341,1767196935024,500.0,0.00011387,2]
[400209342,1767196935165,500.0,0.00011387,2]
[400209343,1767196935328,500.0,0.00011387,2]
[400209344,1767196935453,500.0,0.00011387,2]
[400209345,1767196935598,500.0,0.00011387,2]
[400209346,1767196935724,500.0,0.00011387,2]
[400209347,1767196935884,500.0,0.00011387,2]
[400209348,1767196936014,500.0,0.00011387,2]
[400209349,1767196936154,500.0,0.00011387,2]
[400209350,1767196936314,208.57071956,0.00011387,2]
[400209351,1767196936409,291.42928044,0.00011387,2]
[400209352,1767196936557,500.0,0.00011387,2]
[400209353,1767196936712,500.0,0.00011387,2]
[400209354,1767196936852,500.0,0.00011387,2]
[400209355,1767196937005,500.0,0.00011387,2]
[400209356,1767196937205,500.0,0.00011387,2]
[400209357,1767196937324,500.0,0.00011387,2]
[400209358,1767196937442,500.0,0.00011387,2]
[400209359,1767196937572,500.0,0.00011387,2]
[400209360,1767196937694,500.0,0.00011387,2]
[400209361,1767196946873,500.0,0.00011387,2]
[400209362,1767196947211,500.0,0.00011387,2]
[400209363,1767196947568,500.0,0.00011387,2]
[400209364,1767196947906,500.0,0.00011387,2]
[400209365,1767196948251,500.0,0.00011387,2]
[400209366,1767196948768,500.0,0.00011387,2]
[400209367,1767196949119,500.0,0.00011387,2]
[400209368,1767196949479,500.0,0.00011387,2]
[400209369,1767196949914,500.0,0.00011387,2]
[400209370,1767196950412,500.0,0.00011387,2]
[400209371,1767196955763,208.58071956,0.00011387,2]
[400209372,1767196955865,291.41928044,0.00011387,2]
[400209373,1767196967053,192.43,0.00010813,2]
[400209374,1767196967244,192.43,0.00011414,2]
[400209375,1767196982740,150.0,0.00011439,2]
[400209376,1767196987164,205.47391284,0.00011439,2]
[400209377,1767196991698,1200.0,0.00011439,2]
[400209378,1767196996689,150.0,0.00011388,2]
[400209379,1767196996924,150.0,0.00011388,2]
[400209380,1767196997993,150.0,0.00011388,2]
[400209381,1767196998120,500.0,0.00011388,2]
[400209382,1767196998313,150.0,0.00011388,2]
[400209383,1767196998447,150.73404556,0.00011388,2]
[400209384,1767196998638,150.0,0.00011388,2]
[400209385,1767196998932,500.0,0.00011388,2]
[400209386,1767196999111,500.0,0.00011388,2]
[400209387,1767196999213,150.0,0.00011388,2]
[400209388,1767196999364,500.0,0.00011388,2]
[400209389,1767196999649,150.0,0.00011388,2]
[400209390,1767197001219,150.0,0.00011388,2]
[400209391,1767197001521,150.0,0.00011388,2]
[400209392,1767197001662,500.0,0.00011388,2]
[400209393,1767197001859,150.0,0.00011388,2]
[400209394,1767197001981,150.0,0.00011388,2]
[400209395,1767197002143,150.0,0.00011388,2]
[400209396,1767197002259,500.0,0.00011439,2]
[400209397,1767197002399,500.0,0.00011439,2]
[400209398,1767197002493,150.0,0.00011388,2]
[400209399,1767197002604,500.0,0.00011439,2]
[400209400,1767197002743,500.0,0.00011439,2]
[400209401,1767197002856,315.65718038,0.00011439,2]
[400209402,1767197002977,500.0,0.00011439,2]
[400209403,1767197003086,351.86558078,0.00011439,2]
[400209404,1767197003178,148.13441922,0.00011439,2]
[400209405,1767197003286,500.0,0.00011439,2]
[400209406,1767197003394,500.0,0.00011439,2]
[400209407,1767197003520,500.0,0.00011439,2]
[400209408,1767197003628,500.0,0.00011439,2]
[400209409,1767197003732,500.0,0.00011439,2]
[400209410,1767197003846,500.0,0.00011439,2]
[400209411,1767197003964,500.0,0.00011439,2]
[400209412,1767197004329,500.0,0.00011439,2]
[400209413,1767197004447,500.0,0.00011439,2]
[400209414,1767197004597,500.0,0.00011439,2]
[400209415,1767197004707,500.0,0.00011439,2]
[400209416,1767197004836,500.0,0.00011439,2]
[400209417,1767197004946,500.0,0.00011439,2]
[400209418,1767197005064,500.0,0.00011439,2]
[400209419,1767197005178,500.0,0.00011439,2]
[400209420,1767197005288,500.0,0.00011439,2]
[400209421,1767197005411,500.0,0.00011439,2]
[400209422,1767197005513,500.0,0.00011439,2]
[400209423,1767197005622,500.0,0.00011439,2]
[400209424,1767197007968,243.71816657,0.00011439,2]
[400209425,1767197009089,108.15741421,0.00011439,2]
[400209426,1767197009165,67.21032826,0.00011439,2]
[400209427,1767197009254,291.03341502,0.00011439,2]
[400209428,1767197010200,194.02227668,0.00011439,2]
[400209429,1767197011235,151.0,0.00011439,2]
[400209430,1767197012293,237.04455337,0.00011439,2]
[400209431,1767197014728,500.0,0.00011439,2]
[400209432,1767197014831,500.0,0.00011439,2]
[400209433,1767197014932,500.0,0.00011439,2]
[400209434,1767197015062,500.0,0.00011439,2]
[400209435,1767197015170,500.0,0.00011439,2]
[400209436,1767197015281,500.0,0.00011439,2]
[400209437,1767197015391,500.0,0.00011439,2]
[400209438,1767197015492,500.0,0.00011439,2]
[400209439,1767197015615,500.0,0.00011439,2]
[400209440,1767197015721,500.0,0.00011439,2]
[400209441,1767197015832,500.0,0.00011439,2]
[400209442,1767197015943,500.0,0.00011439,2]
[400209443,1767197016056,500.0,0.00011439,2]
[400209444,1767197016173,500.0,0.00011439,2]
[400209445,1767197016290,500.0,0.00011439,2]
[400209446,1767197016404,500.0,0.00011439,2]
[400209447,1767197016517,500.0,0.00011439,2]
[400209448,1767197029031,559.69942667,0.0001134,2]
[400209449,1767197029113,4180.63163784,0.0001134,2]
[400209450,1767197030366,500.0,0.00010809,2]
[400209451,1767197032851,354.47941879,0.0001134,2]
[400209452,1767197033668,271.99751119,0.00011439,2]
[400209453,1767197042419,3452.365859,0.00011383,2]
[400209454,1767197047838,1240.53557318,7.945e-05,2]
[400209455,1767197047916,7160.39428782,7.945e-05,2]
[400209456,1767197048019,500.0,0.00011439,2]
[400209457,1767197048123,510.51481051,0.00011439,2]
[400209458,1767197050549,192.40821412,0.00011439,2]
[400209459,1767197050649,234.67965394,0.00011439,2]
[400209460,1767197065028,388.05725112,0.0001134,2]
[400209461,1767197078763,1013.95578249,0.00010846,2]
[400209462,1767197078841,3568.65421751,0.00010846,2]
[400209463,1767197101262,300.0,0.00011439,2]
[400209464,1767197101371,1200.0,0.00011439,2]
[400209465,1767197107452,200.0,0.00011439,2]
[400209466,1767197115095,150.0,0.00011388,2]
[400209467,1767197115888,500.0,0.00011388,2]
[400209468,1767197117160,150.0,0.00011388,2]
[400209469,1767197117601,3931.35578249,0.0001134,2]
[400209470,1767197117695,5341.94662344,0.0001134,2]
[400209471,1767197119606,500.0,0.00011388,2]
[400209472,1767197152022,188.70898027,0.0001134,2]
[400209473,1767197161402,300.0,0.00011439,2]
[400209474,1767197162516,150.0,0.00011439,2]
[400209475,1767197164411,3519.35439629,0.0001134,2]
[400209476,1767197164497,549.21247563,0.0001134,2]
[400209477,1767197187974,208.51,0.00011315,2]
[400209478,1767197191428,150.0,0.00011366,2]
[400209479,1767197191596,150.000001,0.00011366,2]
[400209480,1767197191842,200.0,0.00011421,2]
[400209481,1767197192575,500.0,0.00011366,2]
[400209482,1767197192686,500.0,0.00011366,2]
[400209483,1767197192789,500.0,0.00011366,2]
[400209484,1767197192887,645.0,0.00011421,2]
[400209485,1767197192986,550.0,0.00011421,2]
[400209486,1767197193081,500.0,0.00011421,2]
[400209487,1767197193188,500.0,0.00011366,2]
[400209488,1767197193288,150.0,0.00011366,2]
[400209489,1767197193421,150.0,0.00011366,2]
[400209490,1767197193534,500.0,0.00011421,2]
[400209491,1767197193654,500.0,0.00011366,2]
[400209492,1767197193782,500.0,0.00011421,2]
[400209493,1767197205342,258.70483408,0.0001134,2]
[400209494,1767197224981,500.0,0.0001134,2]
[400209495,1767197226075,200.0,0.00011191,2]
[400209496,1767197226676,207.4,0.00011191,2]
[400209497,1767197227261,215.0738,0.00011191,2]
[400209498,1767197227897,223.0315306,0.00011191,2]
[400209499,1767197228539,231.28369723,0.00011191,2]
[400209500,1767197229141,348.37316404,0.00011191,2]
[400209503,1767197230923,1063.42049742,0.0001134,2]
[400209504,1767197231007,10000.01,0.0001134,2]
[400209505,1767197231090,10000.01,0.0001134,2]
[400209506,1767197231167,826.91890258,0.0001134,2]
[400209507,1767197236126,500.0,0.0001144,2]
[400209508,1767197236412,151.0,0.0001144,2]
[400209509,1767197236505,243.71816657,0.0001144,2]
[400209510,1767197236691,200.0,0.0001144,2]
[400209511,1767197237365,162.47877771,0.0001144,2]
[400209512,1767197238373,151.0,0.0001144,2]
[400209513,1767197239293,173.95755543,0.0001144,2]
[400209514,1767197241763,204.7603026,0.00011439,2]
[400209515,1767197253612,520.48253551,0.00011439,2]
[400209516,1767197253714,500.0,0.00011439,2]
[400209517,1767197257585,203.93761826,0.00011366,2]
[400209518,1767197257678,207.91503303,0.00011366,2]
[400209519,1767197282559,1000.0,0.0001134,2]
[400209520,1767197288461,1472.8156,0.0001134,2]
[400209521,1767197291739,1001.0,0.00011439,2]
[400209522,1767197295055,2565.2399,0.0001134,2]
[400209523,1767197300915,1152.9363,0.0001134,2]
[400209524,1767197341343,300.0,0.00011439,2]
[400209525,1767197343452,150.0,0.00011439,2]
[400209526,1767197345786,172.46988938,0.0001134,2]
[400209527,1767197350191,223.49526579,0.0001134,2]
[400209528,1767197350280,80.18503421,0.0001134,2]
[400209529,1767197356440,150.0,0.00010959,2]
[400209530,1767197367906,9769.82496579,0.0001143,2]
[400209531,1767197367988,10000.01,0.0001143,2]
[400209532,1767197368082,87.07115816,0.0001143,2]
[400209533,1767197374849,500.0,0.0001134,2]
[400209534,1767197380812,9412.93884184,0.0001134,2]
[400209535,1767197380881,10000.01,0.0001134,2]
[400209536,1767197380955,10000.01,0.0001134,2]
[400209537,1767197381028,4120.41055816,0.0001134,2]
[400209538,1767197402736,-300.0,0.00011439,2]
[400209539,1767197402829,-300.0,0.00011439,2]
[400209540,1767197402911,-1200.0,0.00011439,2]
[400209541,1767197403420,244.0,0.0001144,2]
[400209542,1767197405365,-236.31408483,0.0001144,2]
[400209543,1767197408274,200.0,0.0001144,2]
[400209544,1767197409092,-188.83753862,0.0001144,2]
[400209545,1767197410714,-257.45117937,0.0001144,2]
[400209546,1767197411335,1000.0,0.0001134,2]
[400209547,1767197412683,-161.05259991,0.0001144,2]
[400209548,1767197414591,150.0,0.00011266,2]
[400209549,1767197414727,200.0,0.00011321,2]
[400209550,1767197414904,500.0,0.00011439,2]
[400209551,1767197415088,500.0,0.00011266,2]
[400209552,1767197415188,500.0,0.00011266,2]
[400209553,1767197415341,500.0,0.00011439,2]
[400209554,1767197415442,500.0,0.00011321,2]
[400209555,1767197415544,500.0,0.00011321,2]
[400209556,1767197415648,150.0,0.00011376,2]
[400209557,1767197415740,500.0,0.00011376,2]
[400209558,1767197415794,-315.51067724,0.0001144,2]
[400209559,1767197415898,500.0,0.0001143,2]
[400209560,1767197416030,456.01,0.00011439,2]
[400209561,1767197416130,43.99,0.00011439,2]
[400209562,1767197416293,500.0,0.00011439,2]
[400209563,1767197416481,500.0,0.00011439,2]
[400209564,1767197416741,500.0,0.00011439,2]
[400209565,1767197417096,500.0,0.00011439,2]
[400209566,1767197417232,500.0,0.00011439,2]
[400209567,1767197417346,500.0,0.00011439,2]
[400209568,1767197417466,500.0,0.00011439,2]
[400209569,1767197417585,500.0,0.00011439,2]
[400209570,1767197417699,500.0,0.00011439,2]
[400209571,1767197417809,500.0,0.00011439,2]
[400209572,1767197417925,500.0,0.00011439,2]
[400209573,1767197417967,-335.22943184,0.0001144,2]
[400209574,1767197418084,500.0,0.00011439,2]
[400209575,1767197418200,500.0,0.00011439,2]
[400209576,1767197418319,500.0,0.00011439,2]
[400209577,1767197418431,500.0,0.00011439,2]
[400209578,1767197418558,500.0,0.00011439,2]
[400209579,1767197418669,500.0,0.00011439,2]
[400209580,1767197418996,500.0,0.00011439,2]
[400209581,1767197419130,500.0,0.00011439,2]
[400209582,1767197419256,456.02,0.00011439,2]
[400209583,1767197419359,43.98,0.00011439,2]
[400209584,1767197419479,274.93081074,0.00011439,2]
[400209585,1767197419562,-305.40988178,0.0001144,2]
[400209586,1767197421395,626.360794,0.00011382,2]
[400209587,1767197422696,-233.76509833,0.0001144,2]
[400209588,1767197424969,-201.15117636,0.0001144,2]
[400209589,1767197429957,2500.0,0.0001134,2]
[400209597,1767197432372,-781.98694337,0.0001144,2]
[400209598,1767197432385,-3240.38433072,0.0001144,2]
[400209599,1767197432397,-801.98263016,0.0001144,2]
[400209600,1767197432410,-61643.92225201,0.0001144,2]
[400209601,1767197432422,-12481.94165182,0.0001144,2]
[400209602,1767197432434,-3597.6301297,0.0001144,2]
[400209603,1767197432446,-1207.06800216,0.0001144,2]
[400209604,1767197432458,-4341.15418,0.0001144,2]
[400209605,1767197432470,-458.86841978,0.0001144,2]
[400209606,1767197432481,-875.88927357,0.0001144,2]
[400209607,1767197432493,-2319.58557692,0.0001144,2]
[400209608,1767197432505,-841.05406,0.0001144,2]
[400209609,1767197432517,-799.21,0.0001144,2]
[400209610,1767197432528,-1231.20141571,0.0001144,2]
[400209611,1767197432542,-1398.05906453,0.0001144,2]
[400209626,1767197433881,-213.7111902,0.0001144,2]
[400209627,1767197434475,521.84901594,0.00011439,2]
[400209628,1767197434595,521.84901594,0.00011439,2]
[400209629,1767197434713,521.84901594,0.00011439,2]
[400209630,1767197434821,521.84901594,0.00011439,2]
[400209631,1767197434932,521.84901594,0.00011439,2]
[400209632,1767197435043,521.84901594,0.00011439,2]
[400209633,1767197435170,521.84901594,0.00011439,2]
[400209634,1767197435291,521.84901594,0.00011439,2]
[400209635,1767197435419,521.84901594,0.00011439,2]
[400209636,1767197435543,521.84901594,0.00011439,2]
[400209637,1767197435662,521.84901594,0.00011439,2]
[400209638,1767197435771,521.84901594,0.00011439,2]
[400209639,1767197435876,292.55020398,0.00011439,2]
[400209640,1767197435967,229.29881196,0.00011439,2]
[400209641,1767197436107,521.84901594,0.00011439,2]
[400209642,1767197436255,521.84901594,0.00011439,2]
[400209643,1767197436380,521.84901594,0.00011439,2]
[400209644,1767197436500,521.84901594,0.00011439,2]
[400209645,1767197436628,521.84901594,0.00011439,2]
[400209646,1767197436754,521.84901594,0.00011439,2]
[400209647,1767197436872,521.84901594,0.00011439,2]
[400209648,1767197436987,521.84901594,0.00011439,2]
[400209649,1767197437126,521.84901594,0.00011439,2]
[400209650,1767197437273,521.84901594,0.00011439,2]
[400209651,1767197437399,521.84901594,0.00011439,2]
[400209652,1767197437515,521.84901594,0.00011439,2]
[400209653,1767197437631,521.84901594,0.00011439,2]
[400209654,1767197437743,521.84901594,0.00011439,2]
[400209655,1767197437852,521.84901594,0.00011439,2]
[400209656,1767197437972,521.84901594,0.00011439,2]
[400209657,1767197438090,521.84901594,0.00011439,2]
[400209658,1767197438208,521.84901594,0.00011439,2]
[400209660,1767197438257,-203.86,0.0001144,2]
[400209661,1767197438676,-1056.54820587,0.0001144,2]
[400209662,1767197438688,-1000.0,0.0001144,2]
[400209663,1767197438788,-2802.14483546,0.0001144,2]
[400209664,1767197438800,-4469.34245051,0.0001144,2]
[400209665,1767197438817,-230614.77449437,0.0001144,2]
[400209666,1767197438829,-1107.22919758,0.0001144,2]
[400209814,1767197440326,-11055.59701595,0.0001144,2]
[400209816,1767197440338,-1239.43669989,0.0001144,2]
[400209844,1767197440576,-4257.78598744,0.0001144,2]
[400209847,1767197440595,-8040.49557726,0.0001144,2]
[400209849,1767197440607,-756.76,0.0001144,2]
[400209852,1767197440619,-302.89525082,0.0001144,2]
[400209854,1767197440631,-218220.09552192,0.0001144,2]
[400209856,1767197440642,-645.04788305,0.0001144,2]
[400209858,1767197440654,-746.18509902,0.0001144,2]
[400209873,1767197440779,-2993.80498,0.0001144,2]
[400209875,1767197440791,-826.28059818,0.0001144,2]
[400209954,1767197441662,-1.7e-07,0.0001144,2]
[400210395,1767197446095,-2727.5093441,0.0001144,2]
[400210398,1767197446111,-2979.06507186,0.0001144,2]
[400210400,1767197446122,-215802.80088253,0.0001144,2]
[400210403,1767197446134,-930.68984301,0.0001144,2]
[400210405,1767197446145,-7569.95305312,0.0001144,2]
[400210769,1767197449801,306.98627364,0.00011439,2]
[400210772,1767197449814,-5071.72170056,0.0001144,2]
[400210784,1767197449918,70.44262748,0.00011439,2]
[400210932,1767197468253,1820.855703,7.945e-05,2]
[400210933,1767197586901,-1884.574061,0.00011144,2]
[400210934,1767197586989,-250.0,0.000112,2]
[400210935,1767197587087,-300.0,0.00011265,2]
[400210936,1767197587169,-150.0,0.00011266,2]
[400210937,1767197587253,-251.45553269,0.00011266,2]
[400210938,1767197587342,-500.0,0.00011266,2]
[400210939,1767197587428,-500.0,0.00011266,2]
[400210940,1767197587509,-500.0,0.00011266,2]
[400210941,1767197587594,-500.0,0.00011266,2]
[400210942,1767197587684,-126.92042247,0.00011266,2]
[400210943,1767197592713,-74.10996768,0.00011266,2]
[400210944,1767197592814,-500.0,0.00011266,2]
[400210945,1767197592902,-500.0,0.00011266,2]
[400210946,1767197592986,-150.0,0.0001132,2]
[400210947,1767197593064,-1200.0,0.0001132,2]
[400210948,1767197593143,-200.0,0.00011321,2]
[400210949,1767197593225,-500.0,0.00011321,2]
[400210950,1767197593311,-500.0,0.00011321,2]
[400210951,1767197593393,-500.0,0.00011321,2]
[400210952,1767197593471,-500.0,0.00011321,2]
[400210953,1767197593555,-251.79006464,0.00011321,2]
[400210954,1767197598674,-248.20993536,0.00011321,2]
[400210955,1767197598755,-500.0,0.00011321,2]
[400210956,1767197598833,-4168.99947885,0.0001134,2]
[400210957,1767197661495,238.51748889,0.00013501,7]
[400210958,1767197685118,397.52914815,0.00014701,7]
[400210959,1767197709414,-150.0,0.00011266,2]
[400210960,1767197709502,-259.1272519,0.00011266,2]
[400210961,1767197709601,-150.0,0.00011266,2]
[400210962,1767197709689,-150.0,0.00011266,2]
[400210963,1767197709771,-300.0,0.00011293,2]
[400210964,1767197709853,-150.0,0.00011321,2]
[400210965,1767197709940,-150.0,0.00011321,2]
[400210966,1767197710027,-150.0,0.00011321,2]
[400210967,1767197710117,-300.0,0.00011339,2]
[400210968,1767197710207,-300.0,0.00011339,2]
[400210969,1767197710304,-1200.0,0.00011339,2]
[400210970,1767197710398,-165.59117158,0.0001134,2]
[400210971,1767197715162,-3606.7947,0.0001134,2]
[400210972,1767197715526,-1798.9615399,0.0001134,2]
[400210973,1767197721279,-987.4590601,0.0001134,2]
[400210974,1767197721370,-500.0,0.0001134,2]
[400210975,1767197721458,-1000.0,0.0001134,2]
[400210976,1767197721546,-150.0,0.00011375,2]
[400210977,1767197721632,-500.0,0.00011376,2]
[400210978,1767197721712,-500.0,0.00011376,2]
[400210979,1767197721793,-562.0,0.00011376,2]
[400210980,1767197721872,-500.0,0.00011376,2]
[400210981,1767197721954,-170.94970992,0.00011376,2]
[400210982,1767197722729,-259.19245996,0.00011376,2]
[400210984,1767197902161,195.0,0.00030137,120]
[400210985,1767197907911,-447.8374687,0.00010468,2]
[400210986,1767197911012,-274.66608259,0.00010468,2]
[400210987,1767197913035,-159.38825297,0.00010468,2]
[400210988,1767197915330,-301.16189551,0.00010468,2]
[400210989,1767197918968,-497.78667359,0.00010468,2]
[400210990,1767197921932,-159.94907617,0.00010468,2]
[400210991,1767197923138,-268.0,0.00010468,2]
[400210992,1767197925218,-253.58674719,0.00010468,2]
[400210993,1767197927166,-222.73693625,0.00010468,2]
[400210994,1767197928823,-193.88020266,0.00010468,2]
[400210995,1767197930836,-349.85972081,0.00010468,2]
[400210996,1767197932980,-265.33343603,0.00010468,2]
[400210997,1767197936131,-231.90626418,0.00010468,2]
[400210998,1767197937655,-206.70642253,0.00010468,2]
[400210999,1767197939462,-228.4019628,0.00010452,2]
[400211000,1767197941027,-204.2285977,0.00010452,2]
[400211001,1767197944583,-312.3725317,0.00010452,2]
[400211002,1767197947323,-301.69,0.00010452,2]
[400211003,1767197948898,-261.72404386,0.00010452,2]
[400211004,1767197951103,-172.57015114,0.00010452,2]
[400211005,1767197953875,-119.0127128,0.00010452,2]
[400211006,1767197953899,-518.04049552,0.00010468,2]
[400211007,1767197955429,-165.51901003,0.00010468,2]
[400211008,1767197957022,-160.72436453,0.00010468,2]
[400211009,1767197958775,-296.48,0.00010468,2]
[400211010,1767197961229,-803.00598487,0.00010468,2]
[400211011,1767197963357,-214.32357581,0.00010468,2]
[400211013,1767197966166,-206.29079003,0.00010468,2]
[400211014,1767197968195,-306.11979734,0.00010468,2]
[400211015,1767197970513,-183.76855541,0.00010468,2]
[400211016,1767197971973,-166.66,0.00010468,2]
[400211017,1767197978024,-382.94071773,0.00010468,2]
[400211018,1767197979564,-299.28773384,0.00010468,2]
[400211019,1767197982648,-373.88504757,0.00010468,2]
[400211020,1767197984699,-291.49263393,0.00010468,2]
[400211021,1767197987777,-409.24786967,0.00010468,2]
[400211022,1767197990820,-258.64198529,0.00010468,2]
[400211023,1767197992895,-282.10114214,0.00010468,2]
[400211024,1767197995520,-330.56250104,0.00010468,2]
[400211025,1767197996961,-204.28178883,0.00010468,2]
[400211026,1767197998435,-422.88094698,0.00010468,2]
[400211027,1767198001831,-153.7373739,0.00010467,2]
[400211028,1767198003944,-146.2626261,0.00010467,2]
[400211029,1767198003970,-239.32519275,0.00010467,2]
[400211030,1767198008974,-60.67480725,0.00010467,2]
[400211031,1767198009002,-153.7373739,0.00010467,2]
[400211032,1767198011641,-216.30916856,0.00010467,2]
[400211033,1767198014346,-591.87149223,0.00010467,2]
[400211034,1767198015925,-213.60054963,0.00010467,2]
[400211035,1767198017983,-24.48141568,0.00010467,2]
[400211036,1767198018069,-236.0,0.00010467,2]
[400211037,1767198018296,-196.08527416,0.00010468,2]
[400211038,1767198018391,-9479.04716864,0.00010468,2]
[400211039,1767198019499,-166.81349127,0.00010468,2]
[400211040,1767198020702,-4197.64994619,0.00010468,2]
[400211041,1767198020782,-500.0,0.000111,2]
[400211042,1767198020861,-203.94309107,0.000111,2]
[400211043,1767198021185,-196.82392548,0.00011183,2]
[400211044,1767198026842,-13.94848989,0.00011183,2]